fUSD/lending_fUSD_20241208
["ID","MTS","AMOUNT","RATE_DAILY","PERIOD"]
[344651672,1733674238512,-500.0,0.00015573,2]
[344651673,1733674238522,-406.15235435,0.00015573,2]
[344651674,1733674238532,-159.62510873,0.00015573,2]
[344651675,1733674238541,-500.0,0.00015573,2]
[344651676,1733674238551,-400.0,0.000156,5]
[344651677,1733674238563,-300.0,0.000156,5]
[344651678,1733674238577,-400.0,0.000157,5]
[344651679,1733674238586,-300.0,0.000157,5]
[344651680,1733674238596,-900.0,0.000158,5]
[344651681,1733674238605,-600.0,0.000158,5]
[344651682,1733674238615,-369.22250553,0.00016121,2]
[344651683,1733674238625,-1000.0,0.00016121,2]
[344651684,1733674238635,-23900.0,0.00016217,2]
[344651685,1733674238644,-168.96,0.00016352,2]
[344651686,1733674238653,-280.0,0.00016667,2]
[344651687,1733674238663,-1500.0,0.00017122,2]
[344651688,1733674238672,-168.96,0.00017205,2]
[344651689,1733674238682,-1000.0,0.00017464,2]
[344651690,1733674238691,-151.58,0.000179,2]
[344651691,1733674238701,-151.58,0.000179,2]
[344651692,1733674238711,-151.58,0.000179,2]
[344651693,1733674238720,-151.58,0.000179,2]
[344651694,1733674238730,-151.58,0.000179,2]
[344651695,1733674238739,-151.58,0.000179,2]
[344651696,1733674238748,-151.58,0.000179,2]
[344651697,1733674238760,-151.58,0.000179,2]
[344651698,1733674238769,-151.58,0.000179,2]
[344651699,1733674238779,-151.58,0.000179,2]
[344651700,1733674238789,-151.58,0.000179,2]
[344651701,1733674238798,-151.58,0.000179,2]
[344651702,1733674238808,-151.58,0.000179,2]
[344651703,1733674238818,-151.58,0.000179,2]
[344651704,1733674238828,-151.58,0.000179,2]
[344651705,1733674238837,-151.58,0.000179,2]
[344651706,1733674238847,-151.58,0.000179,2]
[344651707,1733674239022,-151.58,0.000179,2]
[344651708,1733674239031,-151.58,0.000179,2]
[344651709,1733674239041,-151.58,0.000179,2]
[344651710,1733674239050,-151.58,0.000179,2]
[344651711,1733674239061,-151.58,0.000179,2]
[344651712,1733674239070,-151.58,0.000179,2]
[344651713,1733674239080,-151.58,0.000179,2]
[344651714,1733674239089,-151.58,0.000179,2]
[344651715,1733674239098,-151.58,0.000179,2]
[344651716,1733674239108,-151.58,0.000179,2]
[344651717,1733674239117,-151.58,0.000179,2]
[344651718,1733674239127,-151.58,0.000179,2]
[344651719,1733674239137,-151.58,0.000179,2]
[344651720,1733674239151,-151.58,0.000179,2]
[344651721,1733674239160,-151.58,0.000179,2]
[344651722,1733674239170,-151.58,0.000179,2]
[344651723,1733674239180,-151.58,0.000179,2]
[344651724,1733674239190,-151.58,0.000179,2]
[344651725,1733674239199,-151.58,0.000179,2]
[344651726,1733674239208,-151.58,0.000179,2]
[344651727,1733674239218,-151.58,0.000179,2]
[344651728,1733674239227,-151.58,0.000179,2]
[344651729,1733674239237,-151.58,0.000179,2]
[344651730,1733674239246,-151.58,0.000179,2]
[344651731,1733674239255,-151.58,0.000179,2]
[344651732,1733674239265,-151.58,0.000179,2]
[344651733,1733674239274,-151.58,0.000179,2]
[344651734,1733674239284,-151.58,0.000179,2]
[344651735,1733674239293,-151.58,0.000179,2]
[344651736,1733674239303,-151.58,0.000179,2]
[344651737,1733674239314,-151.58,0.000179,2]
[344651738,1733674239324,-151.58,0.000179,2]
[344651739,1733674239333,-151.58,0.000179,2]
[344651740,1733674239342,-151.58,0.000179,2]
[344651741,1733674239351,-151.58,0.000179,2]
[344651742,1733674239365,-151.58,0.000179,2]
[344651743,1733674239375,-151.58,0.000179,2]
[344651744,1733674239385,-151.58,0.000179,2]
[344651745,1733674239394,-151.58,0.000179,2]
[344651746,1733674239404,-151.58,0.000179,2]
[344651747,1733674239415,-151.58,0.000179,2]
[344651748,1733674239424,-151.58,0.000179,2]
[344651749,1733674239437,-151.58,0.000179,2]
[344651750,1733674239448,-1618.74226032,0.00017956,2]
[344651751,1733674239456,-13099.89657882,0.00018056,2]
[344651752,1733674239466,-168.96,0.00018058,2]
[344651753,1733674239475,-1108.05132663,0.0001842,2]
[344651754,1733674239485,-250.0,0.0001851,2]
[344651755,1733674239494,-6402.0,0.0001863,2]
[344651756,1733674239503,-501.08,0.00018656,2]
[344651757,1733674239512,-500.0,0.00018773,2]
[344651758,1733674239521,-511.13889382,0.00018773,2]
[344651759,1733674239529,-159.94963698,0.00018773,2]
[344651760,1733674239537,-393.88152125,0.00018773,2]
[344651761,1733674239545,-108858.00809411,0.00018797,2]
[344651762,1733674239554,-20000.0,0.00018797,2]
[344651763,1733674239565,-1075.02639277,0.00018799,5]
[344651764,1733674239574,-1075.02639277,0.00018799,5]
[344651765,1733674239583,-1000.0,0.00018799,2]
[344651766,1733674239592,-1000.0,0.00018799,2]
[344651767,1733674239601,-1000.0,0.00018799,2]
[344651768,1733674239611,-1000.0,0.00018799,2]
[344651769,1733674239620,-1000.0,0.00018799,2]
[344651770,1733674239630,-1000.0,0.00018799,2]
[344651771,1733674239639,-69211400.83201931,0.000188,2]
[344651772,1733674239882,-20345.69445,0.000188,2]
[344651773,1733674239893,-13964.90577245,0.000188,2]
[344651774,1733674239904,-9659.99973,0.000188,2]
[344651778,1733674240319,-722.88000006,0.000188,2]
[344651779,1733674240331,-19926.0,0.000188,2]
[344651780,1733674240343,-76071.6469424,0.000188,2]
[344651781,1733674240372,-686.24633394,0.000188,2]
[344651782,1733674240383,-328.12282347,0.000188,2]
[344651783,1733674240426,-422.25836631,0.000188,2]
[344651784,1733674240480,-860.61700724,0.000188,2]
[344651785,1733674240588,-332.54659203,0.000188,2]
[344651786,1733674240599,-9920.5,0.000188,2]
[344651789,1733674243416,-519.59939716,0.00015473,2]
[344651790,1733674243427,-365.448,0.00015548,2]
[344651791,1733674243436,-159.92974554,0.00015573,2]
[344651792,1733674243446,-8341.0228573,0.000188,2]
[344651793,1733674243472,-741.65,0.000188,2]
[344651794,1733674243680,-560.49294706,0.000188,2]
[344651808,1733674246300,-2339.9999998,0.000188,2]
[344651810,1733674246312,-12000.0,0.000188,2]
[344651811,1733674246326,-37805.64866081,0.000188,2]
[344651812,1733674246337,-7117.484186,0.000188,2]
[344651813,1733674246348,-26882.135436,0.000188,2]
[344651814,1733674246369,-599.492688,0.000188,2]
[344651815,1733674246409,-4912.85779201,0.000188,2]
[344651816,1733674246420,-5087.14220799,0.000188,2]
[344651817,1733674246432,-4031.90577183,0.000188,2]
[344651818,1733674246514,-5006.5021,0.000188,2]
[344651819,1733674246571,-21586.67000722,0.000188,2]
[344651820,1733674246582,-1349.76020427,0.000188,2]
[344651821,1733674246594,-1628.002282,0.000188,2]
[344651822,1733674246605,-2662.49585,0.000188,2]
[344651823,1733674246626,-655.5723265,0.000188,2]
[344651825,1733674290848,19312.2321102,0.0001,2]
[344651852,1733675049795,369.96,0.00017514,30]
[344651853,1733675108351,15000.0,0.0001,2]
[344651854,1733675108377,5440204.99003776,0.0001,2]
[344651855,1733675128754,450.0,0.00013,2]
[344651856,1733675129841,500.0,0.00015,2]
[344651888,1733675431725,-522.32448665,0.00015258,2]
[344651889,1733675431735,-1664.8514992,0.00015281,2]
[344651890,1733675431747,-68.9820878,0.00015281,2]
[344651891,1733675431756,-681.64,0.00015358,2]
[344651892,1733675431765,-3097.75854587,0.00015861,2]
[344651893,1733675431782,-400.78,0.00015861,2]
[344651894,1733675431794,-5067.15044787,0.00015861,2]
[344651895,1733675431803,-300.0,0.0001596,2]
[344651896,1733675431813,-1009.06,0.00016685,2]
[344651897,1733675431823,-1924.63,0.00016697,2]
[344651898,1733675431835,-261.95,0.00016717,2]
[344651899,1733675431845,-1167.16,0.00016731,2]
[344651900,1733675431855,-14807.08,0.00016804,2]
[344651901,1733675431864,-886.43,0.00016804,2]
[344651902,1733675431874,-250.0,0.0001684,2]
[344651903,1733675431886,-470.09,0.00016923,2]
[344651904,1733675431895,-1500.0,0.00016926,2]
[344651905,1733675431906,-250.0,0.00016939,2]
[344651906,1733675431915,-200.0,0.00016945,2]
[344651907,1733675431925,-150.0,0.00016985,2]
[344651909,1733675431934,-550.0,0.00017,2]
[344651910,1733675431943,-3597.22,0.0001708,2]
[344651912,1733675431953,-1000.0,0.00017144,2]
[344651913,1733675431961,-2451.27693722,0.00017328,2]
[344651914,1733675431973,-983.1877127,0.00017328,2]
[344651915,1733675431984,-667.530005,0.00017328,2]
[344651916,1733675431995,-2084.81537,0.00017328,2]
[344651917,1733675432013,-2754.10145414,0.00017328,2]
[344651918,1733675432024,-14959.08852094,0.00017328,2]
[344651919,1733675432033,-250.0,0.00017377,2]
[344651920,1733675432042,-476.28,0.00017449,2]
[344651921,1733675432051,-420.0,0.0001745,2]
[344651922,1733675432061,-681.64,0.00017622,2]
[344651923,1733675432070,-974.56,0.00017978,2]
[344651924,1733675432079,-454.40366183,0.00018058,2]
[344651925,1733675432090,-9306.23899374,0.00018058,2]
[344651926,1733675432116,-665.0,0.00018058,2]
[344651931,1733675437682,-522.32448663,0.00015761,2]
[344651932,1733675437691,-5073.42489508,0.00018,2]
[344651933,1733675437701,-782.45790421,0.00018058,2]
[344651934,1733675437741,-252.51685652,0.00018058,2]
[344651940,1733675439461,-1000.941321,0.00018058,2]
[344651941,1733675439520,-1527.92880365,0.00018058,2]
[344651942,1733675439631,-21858.51245905,0.00018058,2]
[344651943,1733675439640,-1440.0,0.000182,2]
[344651944,1733675439649,-16947.29366008,0.000185,2]
[344651945,1733675439661,-873.28639879,0.000185,2]
[344651946,1733675439672,-1926.9,0.000185,2]
[344651947,1733675439696,-2213.81318963,0.000185,2]
[344651948,1733675439707,-830.64404154,0.000185,2]
[344651949,1733675439718,-10165.40231097,0.000185,2]
[344651950,1733675439730,-689.47846196,0.000185,2]
[344651951,1733675439751,-1181.55,0.000185,2]
[344651962,1733675442713,-8224.6500002,0.000185,2]
[344651963,1733675442771,-932.1495934,0.000185,2]
[344651964,1733675442834,-2405.94,0.000185,2]
[344651965,1733675442945,-5065.86330365,0.000185,2]
[344651966,1733675442957,-5977.06890205,0.000185,2]
[344651967,1733675442968,-5941.19679615,0.000185,2]
[344651968,1733675442979,-13338.60330676,0.000185,2]
[344651969,1733675443008,-190144.16003482,0.000185,2]
[344651970,1733675443018,-1827.00304763,0.00018611,2]
[344651971,1733675443028,-1240.11624128,0.00018614,2]
[344651972,1733675443038,-31543.4169359,0.0001862,2]
[344651973,1733675443048,-316.15241415,0.00018624,2]
[344651974,1733675443068,-641.12726647,0.00018624,2]
[344651984,1733675445529,-282.8365606,0.00018624,2]
[344651985,1733675445539,-713.48834026,0.00018634,2]
[344651986,1733675445551,-526.62790096,0.00018634,2]
[344651987,1733675445560,-1240.11624122,0.00018644,2]
[344651988,1733675445569,-1240.11624122,0.00018654,2]
[344651989,1733675445579,-160.95437942,0.00018699,2]
[344651990,1733675445588,-1004.1474133,0.00018699,2]
[344651991,1733675445597,-160.95437942,0.00018699,2]
[344651992,1733675445607,-160.95437942,0.00018699,2]
[344651993,1733675445616,-160.95437942,0.000187,2]
[344651994,1733675445625,-160.95437942,0.000187,2]
[344651995,1733675445634,-160.95437942,0.000187,2]
[344651996,1733675445764,-633.2476088,0.000187,2]
[344651997,1733675445774,-160.95437942,0.000187,2]
[344651998,1733675445783,-4873.85042347,0.000187,3]
[344651999,1733675445795,-59699.13713359,0.000187,3]
[344652000,1733675445806,-3040.6523425,0.000187,3]
[344652001,1733675445822,-2681.10588548,0.000187,3]
[344652002,1733675445837,-1004.14741326,0.00018714,2]
[344652003,1733675445846,-1004.14741326,0.00018729,2]
[344652004,1733675445855,-1004.14741326,0.00018745,2]
[344652005,1733675445864,-1004.14741326,0.0001876,2]
[344652006,1733675445874,-161.51426928,0.00018773,2]
[344652007,1733675445883,-500.0,0.00018773,2]
[344652009,1733675445893,-500.0,0.00018773,2]
[344652010,1733675445903,-500.0,0.00018773,2]
[344652011,1733675445912,-500.0,0.00018773,2]
[344652012,1733675445921,-161.04207877,0.00018773,2]
[344652013,1733675445931,-400.13238884,0.00018773,2]
[344652014,1733675445940,-159.92975177,0.00018773,2]
[344652015,1733675445950,-165.87034363,0.00018773,2]
[344652017,1733675445959,-159.9297537,0.00018773,2]
[344652019,1733675445969,-500.0,0.00018773,2]
[344652021,1733675445979,-159.92975299,0.00018773,2]
[344652023,1733675445989,-163.70950506,0.00018773,2]
[344652025,1733675445998,-1004.14741326,0.00018775,2]
[344652027,1733675446007,-1004.14741326,0.0001879,2]
[344652029,1733675446016,-13436.53206214,0.00018797,2]
[344652032,1733675446028,-32975.06547453,0.00018797,2]
[344652034,1733675446038,-1000.0,0.00018799,2]
[344652036,1733675446047,-1000.0,0.00018799,2]
[344652038,1733675446057,-1000.0,0.00018799,2]
[344652040,1733675446066,-1000.0,0.00018799,2]
[344652042,1733675446076,-1000.0,0.00018799,2]
[344652044,1733675446086,-1000.0,0.00018799,2]
[344652046,1733675446095,-1000.0,0.00018799,2]
[344652048,1733675446105,-1000.0,0.00018799,2]
[344652050,1733675446114,-126708.90625162,0.00018799,2]
[344652052,1733675446124,-234272.81866053,0.00018799,2]
[344652054,1733675446136,-14638.40789919,0.00018799,2]
[344652057,1733675446152,-1296.06955184,0.00018799,2]
[344652059,1733675446163,-28810.875,0.00018799,2]
[344652061,1733675446175,-463.95566,0.00018799,2]
[344652063,1733675446187,-638.6570025,0.00018799,2]
[344652067,1733675446211,-8000.0,0.00018799,2]
[344652070,1733675446234,-3849.7,0.00018799,2]
[344652139,1733675859880,200.0,0.00019,30]
[344652141,1733675945607,351.46,0.00018048,30]
[344652142,1733676248346,-763.12,0.00015937,2]
[344652143,1733676248368,-300.0,0.00017753,2]
[344652144,1733676248388,-1972.75,0.00017754,2]
[344652145,1733676248410,-14259.34,0.00017754,2]
[344652146,1733676248431,-23900.0,0.00017755,2]
[344652147,1733676248453,-1000.0,0.00017766,2]
[344652148,1733676248474,-150.0,0.00017798,2]
[344652149,1733676248501,-250.0,0.000179,2]
[344652150,1733676248522,-261.95,0.00017935,2]
[344652151,1733676248543,-250.0,0.00017963,2]
[344652152,1733676248565,-618.97,0.00017999,2]
[344652153,1733676248586,-763.12,0.00018201,2]
[344652154,1733676248606,-153.99,0.00018227,2]
[344652155,1733676248627,-3000.0,0.0001861,2]
[344652156,1733676248649,-454.0,0.00018612,2]
[344652157,1733676248670,-620.05812061,0.00018699,2]
[344652158,1733676248693,-301.24422405,0.00018699,2]
[344652159,1733676248715,-166.82966766,0.000187,2]
[344652160,1733676248736,-620.05812061,0.00018701,2]
[344652161,1733676248760,-194.56986707,0.00018701,2]
[344652162,1733676249530,-106.6743569,0.00018701,2]
[344652163,1733676249552,-620.05812061,0.00018704,2]
[344652164,1733676249575,-301.24422397,0.00018704,2]
[344652165,1733676249597,-620.05812061,0.00018706,2]
[344652166,1733676249619,-301.24422397,0.00018706,2]
[344652167,1733676249640,-620.05812061,0.00018708,2]
[344652168,1733676249663,-301.24422397,0.00018708,2]
[344652169,1733676249685,-620.05812061,0.00018711,2]
[344652170,1733676249706,-301.24422397,0.00018711,2]
[344652171,1733676249728,-620.05812061,0.00018713,2]
[344652172,1733676249750,-301.24422397,0.00018713,2]
[344652173,1733676249773,-620.05812061,0.00018715,2]
[344652174,1733676249796,-301.24422397,0.00018715,2]
[344652175,1733676250627,500.0,0.00017748,2]
[344652176,1733676276317,250.0,0.00018482,2]
[344652177,1733676304853,193.9,0.00014846,2]
[344652178,1733676305054,193.9,0.00018557,2]
[344652179,1733676346118,184.35360923,0.000187,2]
[344652180,1733676352971,166.39663466,0.000187,2]
[344652181,1733676383598,1404.77,0.0001835,2]
[344652182,1733676393668,150.622112,0.00018699,2]
[344652183,1733676398660,150.62211198,0.00018706,2]
[344652184,1733676399496,155.01453017,0.00018699,2]
[344652185,1733676403702,150.62211198,0.00018713,2]
[344652186,1733676404426,155.01453015,0.00018702,2]
[344652187,1733676409460,155.01453015,0.00018705,2]
[344652188,1733676414411,155.01453015,0.00018708,2]
[344652189,1733676419422,155.01453015,0.00018711,2]
[344652190,1733676424418,155.01453015,0.00018714,2]
[344652191,1733676479957,3794.09820353,0.00018615,2]
[344652192,1733676534051,1500.0,0.00018194,2]
[344652193,1733676570130,3000.0,0.0001861,2]
[344652194,1733676572605,5598.28142234,0.000185,4]
[344652201,1733676632221,-150.0,0.00018715,2]
[344652202,1733676632231,-150.0,0.00018715,2]
[344652203,1733676632241,-150.0,0.00018715,2]
[344652205,1733676632251,-150.0,0.00018715,2]
[344652207,1733676632260,-150.0,0.00018715,2]
[344652209,1733676632270,-150.0,0.00018715,2]
[344652211,1733676632279,-155.01453015,0.00018717,2]
[344652213,1733676632289,-999.13,0.00018719,2]
[344652215,1733676632298,-981.12,0.00018719,2]
[344652217,1733676632307,-1019.88,0.00018719,2]
[344652219,1733676632316,-1010.34,0.00018719,2]
[344652221,1733676632325,-995.93,0.0001872,2]
[344652223,1733676632335,-150.62211198,0.0001872,2]
[344652225,1733676632344,-155.01453015,0.0001872,2]
[344652227,1733676632353,-150.0,0.00018767,2]
[344652229,1733676632363,-500.0,0.00018773,2]
[344652231,1733676632371,-150.0,0.00018797,2]
[344652233,1733676632380,-5406.97294114,0.00018798,2]
[344652242,1733676632484,-639.39624444,0.00018798,2]
[344652266,1733676637622,-381.92898352,0.00018798,2]
[344652267,1733676637635,-4600.9384179,0.00018798,2]
[344652268,1733676637645,-3216.21682438,0.00018799,2]
[344652269,1733676637656,-7713.26996718,0.00018799,2]
[344652270,1733676637744,-99051.22165044,0.00018799,2]
[344652271,1733676637755,-524.95126097,0.00018799,2]
[344652272,1733676637769,-274.176,0.00018799,2]
[344652273,1733676637809,-1118.6533177,0.00018799,2]
[344652274,1733676637859,-7423.86298707,0.00018799,2]
[344652275,1733676637871,-10631.4799499,0.00018799,2]
[344652276,1733676637917,-391.20339408,0.00018799,2]
[344652283,1733676639721,-2948.0,0.00018799,2]
[344652284,1733676639778,-281.0,0.00018799,2]
[344652285,1733676639891,-7549.251747,0.00018799,2]
[344652296,1733676642777,-5169.09077954,0.00018799,2]
[344652297,1733676642790,-3604.59971213,0.00018799,2]
[344652298,1733676642801,-4979.55453856,0.00018799,2]
[344652299,1733676642813,-12551.49995,0.00018799,2]
[344652300,1733676642835,-275.21500009,0.00018799,2]
[344652301,1733676642846,-5994.48237001,0.00018799,2]
[344652302,1733676642858,-11670.87455753,0.00018799,2]
[344652303,1733676642892,-1100.0,0.00018799,2]
[344652304,1733676643053,-719.25,0.00018799,2]
[344652314,1733676646256,-101730.14894065,0.00018799,2]
[344652315,1733676646267,-1566.95093932,0.00018799,2]
[344652316,1733676646281,-28800.0,0.00018799,2]
[344652317,1733676646298,-68913.94958678,0.00018799,2]
[344652320,1733676646309,-28.16800777,0.00018799,2]
[344652322,1733676646319,-637.17197238,0.00018799,2]
[344652324,1733676646328,-500.0,0.00018799,2]
[344652326,1733676646337,-292.62135004,0.00018799,2]
[344652328,1733676646346,-500.0,0.00018799,2]
[344652330,1733676646356,-500.0,0.00018799,2]
[344652331,1733676646365,-500.0,0.00018799,2]
[344652332,1733676646375,-500.0,0.00018799,2]
[344652333,1733676646384,-500.0,0.00018799,2]
[344652334,1733676646394,-500.0,0.00018799,2]
[344652335,1733676646403,-500.0,0.00018799,2]
[344652336,1733676646413,-500.0,0.00018799,2]
[344652337,1733676646422,-500.0,0.00018799,2]
[344652338,1733676646432,-500.0,0.00018799,2]
[344652339,1733676646441,-500.0,0.00018799,2]
[344652340,1733676646451,-500.0,0.00018799,2]
[344652341,1733676646461,-500.0,0.00018799,2]
[344652342,1733676646470,-471.37294437,0.00018799,2]
[344652343,1733676646480,-500.0,0.00018799,2]
[344652344,1733676646489,-500.0,0.00018799,2]
[344652345,1733676646499,-500.0,0.00018799,2]
[344652346,1733676646508,-433.21044771,0.00018799,2]
[344652347,1733676646518,-1000.0,0.00018799,2]
[344652348,1733676646528,-1000.0,0.00018799,2]
[344652349,1733676646537,-1000.0,0.00018799,2]
[344652350,1733676646546,-1000.0,0.00018799,2]
[344652351,1733676646555,-1000.0,0.00018799,2]
[344652352,1733676646565,-1000.0,0.00018799,2]
[344652353,1733676646576,-993.5178,0.00018799,2]
[344652354,1733676646586,-766.11,0.00018799,2]
[344652355,1733676646595,-3000.0,0.00018799,2]
[344652356,1733676646604,-138.54846352,0.000188,2]
[344652357,1733676646631,-7433.9,0.000188,2]
[344652358,1733676646643,-95737.22962711,0.000188,2]
[344652359,1733676732627,429.31,0.00018682,2]
[344652360,1733676736677,346.942,0.0001786,2]
[344652361,1733676757263,504.82,0.00018682,2]
[344652362,1733676777326,21662.95255582,0.000187,2]
[344652363,1733676801235,250.0,0.00018377,2]
[344652364,1733676848825,2357.0,0.00018611,2]
[344652365,1733676854818,200.0,0.00018323,2]
[344652366,1733676862133,446.83363316,0.00018323,2]
[344652367,1733676862155,23453.16636684,0.00018323,2]
[344652368,1733676863059,2000.0,0.00018324,2]
[344652369,1733676909310,163.16044117,0.00018633,2]
[344652370,1733676934962,157.96,0.0001822,2]
[344652371,1733676935598,450.0,0.00013,2]
[344652372,1733676936697,500.0,0.00015,2]
[344652373,1733676937779,550.0,0.00017,2]
[344652374,1733676970687,22725.71319199,0.00017,2]
[344652375,1733676970710,50000.0,0.00017,2]
[344652376,1733676970732,50000.0,0.00017,2]
[344652377,1733676970755,50000.0,0.00017,2]
[344652378,1733676970776,50000.0,0.00017,2]
[344652379,1733676970800,50000.0,0.00017,2]
[344652381,1733677166693,333.88,0.00017639,30]
[344652382,1733677232895,193.9,0.00013767,2]
[344652383,1733677498070,1744.7,0.00019,30]
[344652389,1733677831869,-828.97,0.00015991,2]
[344652390,1733677831879,-596.14,0.000166,2]
[344652391,1733677831888,-250.0,0.00016645,2]
[344652392,1733677831897,-23900.0,0.00016647,2]
[344652393,1733677831906,-1049.06,0.00016659,2]
[344652394,1733677831916,-3226.84,0.0001683,2]
[344652395,1733677831925,-250.0,0.00016843,2]
[344652396,1733677831935,-49887.29405618,0.00016922,2]
[344652397,1733677831944,-500.0,0.00016973,2]
[344652398,1733677831954,-158.42612384,0.00016973,2]
[344652399,1733677831963,-500.0,0.00016973,2]
[344652400,1733677831973,-500.0,0.00016999,2]
[344652401,1733677831982,-150.0,0.00016999,2]
[344652402,1733677831991,-139991.0446827,0.00017,2]
[344652403,1733677832007,-2094.7,0.00017,2]
[344652404,1733677832018,-1873.29249954,0.00017,2]
[344652405,1733677832030,-403.00947286,0.00017,2]
[344652406,1733677832041,-44203.97952556,0.00017,2]
[344652407,1733677832052,-478697.39448325,0.00017,2]
[344652408,1733677832064,-60010.8661441,0.00017,2]
[344652409,1733677832074,-780.0,0.00017022,2]
[344652410,1733677832083,-1373.54,0.00017022,2]
[344652411,1733677832093,-999.99,0.00017022,2]
[344652412,1733677832102,-150.99,0.00017022,2]
[344652413,1733677832114,-166.66,0.0001708,2]
[344652414,1733677832124,-49887.29405615,0.00017098,2]
[344652415,1733677832134,-500.0,0.00017136,2]
[344652416,1733677832143,-165.59749044,0.00017199,2]
[344652417,1733677832153,-159.91988309,0.00017273,2]
[344652418,1733677832162,-500.0,0.00017273,2]
[344652419,1733677832171,-128995.493047,0.00017275,2]
[344652420,1733677832195,-353.999985,0.00017275,2]
[344652444,1733677837849,-7049.91018206,0.00017275,2]
[344652445,1733677837862,-2125.31718767,0.00017275,2]
[344652446,1733677837876,-4068.84502196,0.00017275,2]
[344652447,1733677837887,-5591.31767334,0.00017275,2]
[344652448,1733677837898,-27649.37097707,0.00017275,2]
[344652449,1733677837910,-608.22526621,0.00017275,2]
[344652450,1733677837930,-526.184,0.00017275,2]
[344652451,1733677837966,-4128.88467817,0.00017275,2]
[344652452,1733677838082,-241407.18066032,0.00017275,2]
[344652494,1733677839777,-700.0,0.00017274,2]
[344652495,1733677839787,-336.53520628,0.00017275,2]
[344652496,1733677840086,-98015.33065722,0.00017275,2]
[344652497,1733677840101,-12886.23612776,0.00017275,2]
[344652522,1733677842857,-18851.91127932,0.00017275,2]
[344652523,1733677842968,-3001.865,0.00017275,2]
[344652524,1733677843025,-551.89812493,0.00017275,2]
[344652525,1733677843140,-747.684,0.00017275,2]
[344652526,1733677843152,-17909.27280649,0.00017275,2]
[344652527,1733677843164,-13510.70388293,0.00017275,2]
[344652528,1733677843175,-7639.15283323,0.00017275,2]
[344652529,1733677843199,-4851.53919298,0.00017275,2]
[344652530,1733677843257,-1405.12602955,0.00017275,2]
[344652534,1733677845793,-557.45229243,0.00017275,2]
[344652536,1733677845929,-8616.3872519,0.00017275,2]
[344652537,1733677845940,-39850.0,0.00017275,2]
[344652538,1733677845964,-467807.44797859,0.00017275,2]
[344652539,1733677846022,-3789.0,0.00017275,2]
[344652540,1733677846084,-3149.99999977,0.00017275,2]
[344652541,1733677846144,-376.75212113,0.00017275,2]
[344652542,1733678062350,317.18,0.00017136,30]
[344652544,1733678152747,-787.52,0.00015167,2]
[344652545,1733678152770,-250.0,0.00016831,2]
[344652546,1733678152791,-310.25,0.00016967,2]
[344652547,1733678152813,-153.99,0.00017147,2]
[344652548,1733678152834,-352.28,0.00017203,2]
[344652549,1733678256903,1000.0,0.00017193,2]
[344652550,1733678501067,500.06022506,0.000145,10]
[344652567,1733678753199,9000.0,7e-05,2]
[344652568,1733678754358,585.10387172,6.94e-05,2]
[344652569,1733678766062,6087.20048004,7e-05,2]
[344652578,1733678901932,30973.59542318,0.0001555,2]
[344652579,1733678901957,40000.0,0.0001555,2]
[344652596,1733678945782,301.32,0.00017522,30]
[344652597,1733678947557,27484.0,0.00014937,2]
[344652609,1733679032096,-748.14,0.000154,2]
[344652610,1733679032106,-300.0,0.00015549,2]
[344652611,1733679032115,-150.0,0.00015549,2]
[344652612,1733679032124,-500.0,0.00015549,2]